Cogmind - Beta 17.1 @@@ ROGUE MODE // 2026.08.27 @ 17:34:10 Player: 4R-ZE3 Result: Destroyed by KT-LO2(R) with Subdweller Laser Performance ------------- Evolutions (0) 0 Regions Visited (2) 400 Robots Destroyed (22) 110 Value Destroyed (611) 611 Prototype IDs (0) 0 Alien Tech Used (0) 0 Bonus (5750) 5750 TOTAL SCORE: 6871 Bonus ------- Prayed to X0-1V1 5000 Major X0-1V1 Interference 750 Cogmind --------- Core Integrity 0/250 Matter 246/300 Energy 93/100 System Corruption 0% Temperature Cool (6) Movement Treading (240) Ox1 Location -10/Subcaves Parts ------- > --- POWER (1) -------- (None) > --- PROPULSION (2) --- Light Treads > --- UTILITY (2) ------ Large Storage Unit > --- WEAPON (2) ------- Particle Gun Light Cannon > --- INVENTORY (15) --- Wheel Wheel Compact Wheel Improved Heat Sink X0-1V1's Piety Tracker Peak State ------------ > --- POWER ------------ Light Ion Engine > --- PROPULSION ------- Light Treads Light Treads > --- UTILITY ---------- Large Storage Unit Propulsion Shielding > --- WEAPON ----------- Particle Gun Assault Rifle > --- INVENTORY -------- Light Nuclear Core Light Treads Wheel Wheel Compact Wheel Improved Heat Sink X0-1V1's Piety Tracker Light Cannon [Rating: 10] Favorites ----------- Power Light Ion Engine Engine Light Ion Engine Power Core Light Nuclear Core Propulsion Light Treads Treads Light Treads Utility Propulsion Shielding Storage Small Storage Unit Protection Propulsion Shielding Weapon Assault Rifle Energy Gun Particle Gun Ballistic Gun Assault Rifle Ballistic Cannon Light Cannon Build | -11 -10 -10 ------- Run | Yrd Mat Sub Slots Evolved . | . . . Power . | . . . Propulsion . | . . . Utility . | . . . Weapon . | . . . Parts Attached 15 | 6 6 3 Power 4 | 1 2 1 Engine 3 | 1 2 . Core 1 | . . 1 Reactor . | . . . Propulsion 3 | 2 1 . Treads 3 | 2 1 . Leg . | . . . Wheel . | . . . Hover . | . . . Flight . | . . . Utility 4 | 1 3 . Device . | . . . Storage 2 | 1 1 . Processor . | . . . Hackware . | . . . Protection 2 | . 2 . Artifact . | . . . Weapon 4 | 2 . 2 Energy Gun 1 | . . 1 Energy Cannon . | . . . Ballistic Gun 2 | 2 . . Ballistic Cannon 1 | . . 1 Launcher . | . . . Special Weapon . | . . . Impact Weapon . | . . . Slashing Weapon . | . . . Piercing Weapon . | . . . Special Melee Weapon . | . . . Unidentified Prototypes . | . . . Parts Lost 9 | . 2 7 Power 3 | . 1 2 Propulsion 2 | . . 2 Utility 2 | . 1 1 Weapon 2 | . . 2 Highest Loss Streak 6 | . 2 6 To Critical Strikes . | . . . Average Backups 7 | 1 7 7 Power . | . 1 . Propulsion 2 | 1 2 3 Utility 1 | . 2 2 Weapon 1 | . 1 1 Tool/Special . | . . . Unused Backups 6 | . 2 4 Power . | . . . Propulsion 3 | . . 3 Utility 3 | . 2 1 Weapon . | . . . Tool/Special . | . . . Average Slot Usage (%) 97 | . 99 92 Engine 13 | . 14 11 Treads 27 | . 28 25 Storage 14 | . 14 14 Protection 12 | . 13 11 Energy Gun 2 | . . 11 Ballistic Gun 25 | . 28 14 Peak Build Rating 10 | 6 9 10 Average Rating 7 | 5 7 9 On Entrance 5 | . 6 9 Avg Prop Armor Cover (%) . | . . . Naked Turns . | . . . Heaviest Build 29 | 11 29 29 Greatest Support 40 | 40 40 40 Greatest Overweight (x) 2 | 2 . . Average Overweight (x) . | . . . Largest Inventory Capacity 15 | 8 15 15 Average Capacity 11 | 7 10 15 Most Carried 9 | 3 9 9 Average Carried 7 | 1 7 7 Final Capacity 15 | 8 15 15 Final Carried 9 | 3 9 5 Class Distribution -------------------- 100% | Mutant Dominant Class ---------------- Mutant | -10/Materials Mutant | -10/Subcaves Resources | -11 -10 -10 ----------- Run | Yrd Mat Sub Matter Collected 582 | 193 357 32 Remotely . | . . . Salvage Created 943 | . 791 152 Parts 49 | . 40 9 Haulers Intercepted 1 | . 1 . Recyclers Shooed . | . . . Parts Field Recycled . | . . . Retrieved Matter . | . . . Parts Self-Destructed 6 | . . 6 Prevented . | . . . Parts Restored . | . . . Kills | -11 -10 -10 ------- Run | Yrd Mat Sub Combat Hostiles Destroyed 18 | . 14 4 Guns 18 | . 14 4 Classes Destroyed 5 | . 4 1 Hauler 1 | . 1 . Recycler 3 | . 3 . Swarmer 3 | . 3 . Grunt 13 | . 11 2 Subdweller 2 | . . 2 Best Kill Streak 3 | . 3 2 Combat Bots Only 3 | . 3 2 Max Kills in Single Turn 1 | . 1 1 Gunslinging . | . . . Exploded . | . . . Melee . | . . . Uniques/NPCs Destroyed . | . . . Combat | -11 -10 -10 -------- Run | Yrd Mat Sub Hostile Shots Fired 126 | . 87 39 Missed 34 | . 24 10 Hits 92 | . 63 29 Projectile 92 | . 63 29 Damage Taken 1247 | . 651 596 Core 271 | . 131 140 Absorbed by Shields . | . . . Redirected to Shielding 102 | . 74 28 Core Remaining (%) 100 | 100 . . Volleys Fired 82 | . 60 22 Largest 2 | . 2 2 Hottest 95 | . 40 95 Shots Fired 164 | . 120 44 Gun 158 | . 120 38 Cannon 6 | . . 6 Launcher . | . . . Special . | . . . Kinetic 148 | . 120 28 Thermal 16 | . . 16 Explosive . | . . . Electromagnetic . | . . . Robot Hit Streak 16 | . 16 11 Robot Miss Streak 5 | . 5 2 Penetration Max . | . . . Secondary Targets 2 | . 2 . Max Gunslinging Chain 1 | . 1 . Shots Hit Robots 111 | . 80 31 Core Hits 36 | . 30 6 Critical Kills 1 | . . 1 Critical Parts Destroyed . | . . . Critical Strikes 2 | . . 2 Burn 1 | . . 1 Destroy 1 | . . 1 Melee Attacks . | . . . Impact . | . . . Slashing . | . . . Piercing . | . . . Sneak Attacks . | . . . Combat Hostiles . | . . . Follow-up Attacks . | . . . Damage Inflicted 1344 | . 936 408 Guns 1306 | . 936 370 Cannons 38 | . . 38 Explosions . | . . . Melee . | . . . Ramming . | . . . Kinetic 1144 | . 936 208 Thermal 200 | . . 200 Explosive . | . . . Electromagnetic . | . . . Impact . | . . . Slashing . | . . . Piercing . | . . . Highest Corruption . | . . . Average Corruption . | . . . Corruption Purged . | . . . Corruption Blocked . | . . . Overload Shots . | . . . Overflow Damage . | . . . Projectiles . | . . . Explosions . | . . . Melee . | . . . Knockbacks 1 | . . 1 Impact . | . . . Kinetic 1 | . . 1 Secondary . | . . . Self-Inflicted Damage . | . . . Shots . | . . . Rammed . | . . . Targets Rammed . | . . . Kicked . | . . . Crushed . | . . . Highest Temperature 28 | . 28 2 Average Temperature 11 | . 12 2 Received Heat Transfer 468 | . 267 201 Siege Activations . | . . . Martial Activations . | . . . Shielding Activations . | . . . Robots Disrupted . | . . . Combat Hostiles . | . . . Robots Corrupted . | . . . Combat Hostiles . | . . . Parts Fried . | . . . Impact Corruptions . | . . . Robots Melted . | . . . Combat Hostiles . | . . . Parts Melted 2 | . . 2 Heat Transferred 592 | . . 592 Parts Sabotaged . | . . . Parts Stolen . | . . . Parts Stripped . | . . . Power Chain Reactions . | . . . Alert | -11 -10 -10 ------- Run | Yrd Mat Sub Maximum Alert Level . | . . . Low Security (%) 100 | 100 100 . Level 1 . | . . . Level 2 . | . . . Level 3 . | . . . Level 4 . | . . . Level 5 . | . . . High Security . | . . . Max Security . | . . . Peak Influence 115 | . 115 . Initial . | . . . Average 58 | . 63 . Influence Increases 509 | . 459 50 Destroy 0b10 Robot/C 320 | . 280 40 Destroy 0b10 Robot/NC 20 | . 20 . Destroy Leader 82 | . 72 10 Successful Hack 12 | . 12 . Select Force Hacks 60 | . 60 . Lose Combat Pursuer 15 | . 15 . Influence Decreases 509 | . 374 135 Entered New Map 41 | . . 41 Time Decay 424 | . 354 70 Lost Part 44 | . 20 24 Squads Dispatched 4 | . 4 . Investigation 2 | . 2 . Extermination . | . . . Reinforcement 2 | . 2 . Assault . | . . . Garrison . | . . . Intercept . | . . . Searches Triggered . | . . . Construction Impeded . | . . . Haulers Reinforced . | . . . Active Scanning Responses . | . . . Cargo Convoy Interrupts . | . . . Stealth | -11 -10 -10 --------- Run | Yrd Mat Sub Distress Signals 1 | . 1 . Communications Jammed . | . . . Distress Signals . | . . . Times Spotted 33 | . 26 7 Peak Tracking Total 5 | . 5 3 Tactical Retreats 1 | . 1 . Traps | -11 -10 -10 ------- Run | Yrd Mat Sub Traps Triggered . | . . . Indirectly . | . . . Trap Hack Attempts . | . . . Triggered . | . . . Disarmed . | . . . Reprogrammed . | . . . Reused . | . . . Traps Extracted . | . . . Installed . | . . . Triggered . | . . . Machines | -11 -10 -10 ---------- Run | Yrd Mat Sub Machines Disabled . | . . . Max in Single Turn . | . . . Machines Repaired . | . . . Machines Dismantled . | . . . Machines Sabotaged . | . . . Overloaded Fab Kills . | . . . Hacking | -11 -10 -10 --------- Run | Yrd Mat Sub Machines Accessed 6 | . 6 . Terminals 4 | . 4 . Fabricators . | . . . Repair Stations . | . . . Recycling Units 2 | . 2 . Scanalyzers . | . . . Garrison Access . | . . . Total Hacks 14 | . 14 . Successful 6 | . 6 . Failed 8 | . 8 . Catastrophic . | . . . Database Lockouts . | . . . Manual 15 | . 15 . Terminals 10 | . 10 . Fabricators . | . . . Repair Stations . | . . . Recycling Units 4 | . 4 . Scanalyzers . | . . . Garrison Access . | . . . Terminal Hacks 3 | . 3 . Robot Analysis 2 | . 2 . Zone Layout 1 | . 1 . Fabricator Hacks . | . . . Repair Station Hacks . | . . . Recycling Unit Hacks . | . . . Scanalyzer . | . . . Garrison Access Hacks . | . . . Unauthorized Hacks 3 | . 3 . Terminals 1 | . 1 . Botnet 1 | . 1 . Fabricators . | . . . Repair Stations . | . . . Recycling Units 2 | . 2 . Tunnel 2 | . 2 . Scanalyzers . | . . . Garrison Access . | . . . Data Cores Recovered . | . . . Used . | . . . Hacking Detections 4 | . 4 . Full Trace Events . | . . . Feedback Events . | . . . Feedback Blocked . | . . . Robot Schematics Acquired . | . . . Robots Built . | . . . Authchips . | . . . Time . | . . . Total Robot Build Rating . | . . . Part Schematics Acquired . | . . . Parts Built . | . . . Authchips . | . . . Time . | . . . Total Part Build Rating . | . . . Part Studies Acquired . | . . . Parts Repaired . | . . . Time . | . . . Parts Recycled . | . . . Recycled Matter . | . . . Retrieved Matter . | . . . Retrieved Components . | . . . Parts Scanalyzed . | . . . Part Schematics Acquired . | . . . Parts Damaged . | . . . Bothacking | -11 -10 -10 ------------ Run | Yrd Mat Sub Used RIF Installer . | . . . Robots Hacked . | . . . Non-combat . | . . . Combat . | . . . Robot Hacks Applied . | . . . Relay Couplers Released . | . . . Fabnet Peak Effective % . | . . . Robots Rewired . | . . . Allies Hacked . | . . . Hacks Repelled . | . . . Allies | -11 -10 -10 -------- Run | Yrd Mat Sub Total Allies . | . . . Largest Group . | . . . Highest-Rated Group . | . . . Highest-Rated Ally . | . . . Total Orders . | . . . Ally Attacks . | . . . Total Damage . | . . . Kills . | . . . Allies Corrupted . | . . . Allies Melted . | . . . X0-1V1 Amusement Gains 17 | . 17 . Average Entertainment 7 | . 17 7 Good Acts 1 | . . 1 Bad Acts 3 | . . 3 Intel | -11 -10 -10 ------- Run | Yrd Mat Sub Active Infowar (turns) . | . . . Robot Analysis Total 2 | . 2 . Derelict Logs Recovered . | . . . Drone Launches . | . . . Drone Recoveries . | . . . Exploration | -11 -10 -10 ------------- Run | Yrd Mat Sub Turns Passed 1136 | 82 872 182 Spaces Moved 504 | 47 398 59 Core 5 | 5 . . Treads 499 | 42 398 59 Legs . | . . . Wheels . | . . . Hover . | . . . Flight . | . . . Fastest Speed 50 | 50 160 160 Average Speed 159 | 150 160 160 Slowest Speed 160 | 160 160 160 Overloaded Moves . | . . . Propulsion Burnouts . | . . . Robots Hopped . | . . . Potential Cave-ins . | . . . Cave-ins Triggered . | . . . Exploration Rate (%) 29 | 5 75 9 Regions Visited 2 Branch Regions 1 Pre-discovered Areas 2 | . 2 . Known Exits Taken . | . . . Unknown Exits Taken 2 | 1 1 . Scrap Searched . | . . . Spaces Dug . | . . . Terrain Destroyed . | . . . Melee . | . . . Projectile . | . . . AOE . | . . . Terrain Rammed . | . . . Walls Destroyed . | . . . Machines Disabled . | . . . Actions | -11 -10 -10 --------- Run | Yrd Mat Sub Total 687 | 55 527 105 Wait 69 | . 49 20 Move 502 | 46 397 59 Hop . | . . . Pick Up 13 | 3 10 . Fast Attach 7 | 6 1 . Attach 6 | . 2 4 Detach . | . . . Swap 3 | . 3 . Drop 5 | . 5 . Fire 82 | . 60 22 Melee . | . . . Ram . | . . . Kick . | . . . Crush . | . . . Escape Stasis . | . . . Rewire . | . . . Trap . | . . . Miscellaneous . | . . . Route ------- -11/Scrapyard -10/Materials (discovered 4 exits: [*Mat x3] / [*Sub]) -10/Subcaves (discovered 1 exit: [*Mat]) History --------- Turn | Location | Event 11 | -11/Scrapyard | Discovered new exit (range 16) 83 | -11/Scrapyard | Entered Materials 313 | -10/Materials | Build established: Mutant 419 | -10/Materials | Discovered new exit (range 10) 771 | -10/Materials | Discovered new exit (range 4) 864 | -10/Materials | Discovered new exit (range 13) 890 | -10/Materials | Core integrity fell below 50% 932 | -10/Materials | Discovered new exit (range 5) 952 | -10/Materials | Prayed at D.C.S.S. Altar Unit 955 | -10/Materials | Entered Subcaves 956 | -10/Subcaves | Approached by a straggling Scientist 960 | -10/Subcaves | Discovered new exit (range 6) 960 | -10/Subcaves | X0-1V1 sent you into danger 1051 | -10/Subcaves | Ambushed by Subdwellers from Twisted Machinery 1113 | -10/Subcaves | X0-1V1 sent you into danger 1116 | -10/Subcaves | Core integrity fell below 20% 1137 | -10/Subcaves | Destroyed by KT-LO2(R) with Subdweller Laser Last Messages --------------- 01064_ X9-00C(R) affixes Scrap Shield Fragment to Scrap Shield. 01065_ JH-Z0J(R) destroyed. 01091_ X0-1V1 makes it rain matter. 01099_ Propulsion Shielding destroyed. 01101_ Lgt. Treads destroyed. 01101_ Lgt. Ion Engine destroyed. 01106_ X9-00C(R) suffers critical hit (Burn). 01107_ Lgt. Treads destroyed. 01111_ Sub. Optics melted. 01111_ Sub. Power Source melted. 01111_ X9-00C(R) destroyed. 01113_ X0-1V1: "Enjoy the ride!" 01119_ Assault Rifle destroyed. 01123_ Lgt. Nuclear Core destroyed. 01124_ HC-8A0(R) destroyed. 01134_ X0-1V1: "I know that drunk sailor look when I see it." 01136_ KT-LO2(R) knocked back. 01137_ X0-1V1 guffaws! Map ----- +----------------------------------------------------+ | ?????????????????????????????????????????????????? | | ?????????????????????????????????????????????????? | | ?????????????????????????????????????????????????? | | ?????????????????????????????????????????????????? | | ?????????????????????????????????????????????????? | | ?????????????????????????????????????????????????? | | ?????????????????????????????????????????????????? | | ?????????????????????????????????????????????????? | | ?????????????????????????????????????????????????? | | ?????????????????????????????????????????????????? | | ?????????????????????????????????????????????????? | | ?????????????????????????????????????????????????? | | ?????????????????????????????????????????????????? | | ?????????????????????????????????????????????????? | | ?????????????????????????????????????????????????? | | ?????????????????????????????????????????????????? | | ?????????????????????????????????????????????????? | | ?????????????????????????????????????????????????? | | ?????????????????????????????????????????????????? | | ?????????????????????????????????????????????????? | | ????#????????????????????????????????????????????? | | ???# #?????????????????????????????????????????? | | ??# ???????????????????????????????????????? | | ?? ???????????????????????????????????????? | | ?? #?????????????##### ####????????????????? | | ?? ##????????????# @%* #????????????????? | | ?? #????????? R = R #????????????????? | | ## ????????#$# % #????????????????? | | ???????????# # ## #???????????????? | | ????????????### ##?? ?????????????? | | ??????????????# #????? ???????????? | | ?????????????????# #??????### ??????????? | | #????????????????????#####?????????????????????? | | #??###?????????????????????????????????????????? | | ### #?????????????????????????????????????????? | | #?????????????????????????????????????????? | | = ###???????????????????????????????????????? | | #% #???????????????????????????????????????? | | #& ##???????????????????????????????????????? | | #????????????????????????????????????????? | | % #????????????????????????????????????????? | | % ##????????????????????????????????????????? | | % ##?????????????????????????????????????????? | | % ##??????????????????????????????????????????? | | ##???????????????????????????????????????????? | | # ##????????????????????????????????????????????? | | ####?????????????????????????????????????????????? | | ##???????????????????????????????????????????????? | | #???????????????????????????????????????????????? | | #???????????????????????????????????????????????? | +----------------------------------------------------+ Best States ------------- Heat Dissipation 25 Energy Generation 14 Energy Capacity 250 Matter Stores 300 Matter Capacity 300 Sight Range 16 Terrain Scan Density 10 Propulsion Shielding 33 Evasion (%) 40 Recoil Reduction 2 Item Schematics ----------------- None Robot Schematics ------------------ None Fabricated ------------ Nothing Repaired ---------- Nothing Studied --------- None Alien Tech Used ----------------- None Achievements -------------- None Challenges ------------ None Game ------ Seed BlanketReactionDistortion Manual? 0 Play Time 00:07:04 Cumulative 303.1 hours Start 2026.08.27 @ 17:28:23 End 2026.08.27 @ 17:34:10 Sessions 1 Manual Loads 0 Difficulty Rogue Special Mode None Game No. 289 Rogue 235 Adventurer 54 Explorer 0 Win Type - Total 12 Types 8/0/1/1/0/0/0/1/0/1 Lore% 77 Gallery% 66 Achievement% 61 Wizard Run 0 Options --------- Layout 1 ASCII 0 Keyboard 0 Movement Mouse Keybinds 1 Fullscreen 2 Font 32/Tamsyn Map View 50x35 Zoom Use 0% Tactical HUD 1 Map Filters NONE Filters NONE Steam 1 RUN: 8916b8b9-a858-48ad-aef3-a42df8ed3528